[Event "*** SCC Grand Prix: Titled Tuesday Blitz"]
[Site "Chess.com"]
[Date "2020.09.08"]
[Round "4"]
[White "Nikithebest"]
[Black "Matols"]
[Result "1-0"]
[WhiteElo "2445"]
[BlackElo "2262"]
[TimeControl "180+1"]
[EndTime "10:37:20 PDT"]
[Termination "Nikithebest won by resignation"]

1. Nf3 {[%clk 0:03:00.9]} 1... Nf6 {[%clk 0:02:59.3]} 2. d4 {[%clk 0:03:00.5]}
2... e6 {[%clk 0:02:56.3]} 3. e3 {[%clk 0:02:59.8]} 3... b6 {[%clk 0:02:55.4]}
4. Bd3 {[%clk 0:02:59.4]} 4... Bb7 {[%clk 0:02:54.8]} 5. O-O {[%clk 0:02:56.2]}
5... Be7 {[%clk 0:02:52.7]} 6. c4 {[%clk 0:02:55.2]} 6... O-O {[%clk 0:02:49.8]}
7. Nc3 {[%clk 0:02:50]} 7... d5 {[%clk 0:02:48.4]} 8. a3 {[%clk 0:02:33.9]} 8...
dxc4 {[%clk 0:02:42.2]} 9. Bxc4 {[%clk 0:02:31.1]} 9... Nbd7 {[%clk 0:02:39.2]}
10. Bd2 {[%clk 0:02:19.1]} 10... c5 {[%clk 0:02:37.6]} 11. Bd3 {[%clk
0:02:10.9]} 11... cxd4 {[%clk 0:02:31.6]} 12. exd4 {[%clk 0:02:10.3]} 12... Rc8
{[%clk 0:02:24.7]} 13. Qe2 {[%clk 0:02:01.1]} 13... Re8 {[%clk 0:02:16.4]} 14.
Rfe1 {[%clk 0:01:55.2]} 14... Nf8 {[%clk 0:02:02.5]} 15. Bb5 {[%clk 0:01:47.8]}
15... Bc6 {[%clk 0:01:57.4]} 16. Ba6 {[%clk 0:01:44.4]} 16... Ra8 {[%clk
0:01:51.4]} 17. Ne5 {[%clk 0:01:43.7]} 17... Bd5 {[%clk 0:01:41.2]} 18. Bb5
{[%clk 0:01:43.6]} 18... N8d7 {[%clk 0:01:33.3]} 19. Nxd5 {[%clk 0:01:33.8]}
19... exd5 {[%clk 0:01:30.1]} 20. Nc6 {[%clk 0:01:31]} 20... Qc7 {[%clk
0:01:17.7]} 21. Nxe7+ {[%clk 0:01:27.5]} 21... Kf8 {[%clk 0:01:17.2]} 22. Bb4
{[%clk 0:01:23.6]} 1-0

[Event "*** SCC Grand Prix: Titled Tuesday Blitz"]
[Site "Chess.com"]
[Date "2020.09.08"]
[Round "4"]
[White "Rozum_Ivan"]
[Black "hellokostya"]
[Result "1-0"]
[WhiteElo "2711"]
[BlackElo "2490"]
[TimeControl "180+1"]
[EndTime "10:37:21 PDT"]
[Termination "Rozum_Ivan won by resignation"]

1. e4 {[%clk 0:03:00.9]} 1... Nc6 {[%clk 0:02:58.5]} 2. Ne2 {[%clk 0:03:00.5]}
2... e5 {[%clk 0:02:56.4]} 3. Nbc3 {[%clk 0:02:59.4]} 3... Nf6 {[%clk
0:02:55.4]} 4. g3 {[%clk 0:02:59.5]} 4... d5 {[%clk 0:02:53.3]} 5. exd5 {[%clk
0:03:00.4]} 5... Nxd5 {[%clk 0:02:53.2]} 6. Bg2 {[%clk 0:03:00.8]} 6... Be6
{[%clk 0:02:42.2]} 7. O-O {[%clk 0:02:59.4]} 7... Bc5 {[%clk 0:02:39]} 8. d3
{[%clk 0:02:38.5]} 8... O-O {[%clk 0:02:36.4]} 9. Ne4 {[%clk 0:02:35.3]} 9...
Be7 {[%clk 0:02:33.7]} 10. f4 {[%clk 0:02:33.3]} 10... exf4 {[%clk 0:02:28.9]}
11. Nxf4 {[%clk 0:02:34.2]} 11... Nxf4 {[%clk 0:02:28.6]} 12. Bxf4 {[%clk
0:02:34.8]} 12... Nd4 {[%clk 0:02:15.5]} 13. c3 {[%clk 0:02:32.7]} 13... Nf5
{[%clk 0:02:12.1]} 14. d4 {[%clk 0:02:31]} 14... c6 {[%clk 0:02:08.5]} 15. Qc2
{[%clk 0:02:20.7]} 15... Bd5 {[%clk 0:02:03.4]} 16. Rae1 {[%clk 0:02:19.2]}
16... Nd6 {[%clk 0:02:01.6]} 17. Nxd6 {[%clk 0:02:01.8]} 17... Bxg2 {[%clk
0:01:48.6]} 18. Nxf7 {[%clk 0:01:58.8]} 18... Rxf7 {[%clk 0:01:36.8]} 19. Qxg2
{[%clk 0:01:58.1]} 19... c5 {[%clk 0:01:30.5]} 20. Be5 {[%clk 0:01:53.7]} 20...
cxd4 {[%clk 0:01:28.5]} 21. Rxf7 {[%clk 0:01:53]} 21... Kxf7 {[%clk 0:01:28.1]}
22. Bxd4 {[%clk 0:01:46.7]} 22... Qd7 {[%clk 0:01:23.8]} 23. Qe4 {[%clk
0:01:40]} 23... h6 {[%clk 0:01:03.9]} 24. Bxg7 {[%clk 0:01:29.8]} 24... Bc5+
{[%clk 0:00:53.6]} 25. Bd4 {[%clk 0:01:29.6]} 25... Bxd4+ {[%clk 0:00:53.6]} 26.
cxd4 {[%clk 0:01:29.4]} 1-0

[Event "*** SCC Grand Prix: Titled Tuesday Blitz"]
[Site "Chess.com"]
[Date "2020.09.08"]
[Round "4"]
[White "BigAl"]
[Black "seorobert1971"]
[Result "0-1"]
[WhiteElo "2475"]
[BlackElo "2681"]
[TimeControl "180+1"]
[EndTime "10:37:23 PDT"]
[Termination "seorobert1971 won by resignation"]

1. e4 {[%clk 0:03:00.9]} 1... c6 {[%clk 0:02:59.8]} 2. d3 {[%clk 0:03:00.7]}
2... d5 {[%clk 0:02:59.7]} 3. Nd2 {[%clk 0:03:01.6]} 3... e5 {[%clk 0:02:59.8]}
4. Ngf3 {[%clk 0:03:02.1]} 4... Bd6 {[%clk 0:02:59.8]} 5. g3 {[%clk 0:03:02.6]}
5... Nf6 {[%clk 0:02:59.8]} 6. Bg2 {[%clk 0:03:03.3]} 6... O-O {[%clk
0:02:59.9]} 7. O-O {[%clk 0:03:04]} 7... Nbd7 {[%clk 0:02:58.9]} 8. Re1 {[%clk
0:03:04.6]} 8... Re8 {[%clk 0:02:59]} 9. Nh4 {[%clk 0:03:03.3]} 9... Nc5 {[%clk
0:02:57]} 10. h3 {[%clk 0:03:03.1]} 10... Ne6 {[%clk 0:02:54.4]} 11. c3 {[%clk
0:03:02.5]} 11... Bf8 {[%clk 0:02:53]} 12. Qf3 {[%clk 0:03:00.8]} 12... a5
{[%clk 0:02:49.3]} 13. Nf1 {[%clk 0:02:59.9]} 13... a4 {[%clk 0:02:44.6]} 14.
Nf5 {[%clk 0:02:59.3]} 14... b5 {[%clk 0:02:32.6]} 15. a3 {[%clk 0:02:58.7]}
15... Qc7 {[%clk 0:02:20.6]} 16. Nh2 {[%clk 0:02:25.9]} 16... Rb8 {[%clk
0:02:00.4]} 17. g4 {[%clk 0:02:24]} 17... Nd7 {[%clk 0:01:52.5]} 18. g5 {[%clk
0:02:18.6]} 18... Ndc5 {[%clk 0:01:48.7]} 19. Ng4 {[%clk 0:02:15.6]} 19... Nb3
{[%clk 0:01:43.3]} 20. Nfh6+ {[%clk 0:02:09.6]} 20... gxh6 {[%clk 0:01:42.8]}
21. Nf6+ {[%clk 0:02:09.3]} 21... Kh8 {[%clk 0:01:39.4]} 22. Nxe8 {[%clk
0:02:08.6]} 22... Qe7 {[%clk 0:01:36.4]} 23. Nf6 {[%clk 0:02:08.7]} 23... Nxa1
{[%clk 0:01:34.1]} 24. Qf5 {[%clk 0:02:08.3]} 24... Nxg5 {[%clk 0:01:30]} 25.
Bxg5 {[%clk 0:01:46]} 25... Bxf5 {[%clk 0:01:27.2]} 26. Rxa1 {[%clk 0:01:38.9]}
26... hxg5 {[%clk 0:01:24.9]} 27. Nh5 {[%clk 0:01:38.9]} 27... Bg6 {[%clk
0:01:23.8]} 28. Ng3 {[%clk 0:01:39.2]} 28... dxe4 {[%clk 0:01:22.1]} 29. dxe4
{[%clk 0:01:38.7]} 29... Rd8 {[%clk 0:01:21.5]} 30. Re1 {[%clk 0:01:38.2]} 30...
h5 {[%clk 0:01:20.9]} 31. Nf1 {[%clk 0:01:34.9]} 31... g4 {[%clk 0:01:18.9]} 32.
Ne3 {[%clk 0:01:34.4]} 32... Qg5 {[%clk 0:01:16.1]} 33. hxg4 {[%clk 0:01:32.3]}
33... hxg4 {[%clk 0:01:17]} 34. Nf1 {[%clk 0:01:31.6]} 34... Bc5 {[%clk
0:01:16.2]} 35. Re2 {[%clk 0:01:30.8]} 35... Rd1 {[%clk 0:01:15.2]} 0-1

[Event "*** SCC Grand Prix: Titled Tuesday Blitz"]
[Site "Chess.com"]
[Date "2020.09.08"]
[Round "4"]
[White "ChadaevNikolay"]
[Black "Caterpiller35"]
[Result "1-0"]
[WhiteElo "2814"]
[BlackElo "2462"]
[TimeControl "180+1"]
[EndTime "10:37:25 PDT"]
[Termination "ChadaevNikolay won by checkmate"]

1. d4 {[%clk 0:03:00.9]} 1... Nf6 {[%clk 0:02:59.8]} 2. c4 {[%clk 0:03:00.9]}
2... e6 {[%clk 0:02:55.7]} 3. Nf3 {[%clk 0:03:00.6]} 3... b6 {[%clk 0:02:55.2]}
4. g3 {[%clk 0:03:00.4]} 4... Ba6 {[%clk 0:02:55.2]} 5. Qc2 {[%clk 0:02:58.8]}
5... c5 {[%clk 0:02:54.9]} 6. d5 {[%clk 0:02:58.8]} 6... exd5 {[%clk 0:02:54.7]}
7. cxd5 {[%clk 0:02:59]} 7... g6 {[%clk 0:02:53.7]} 8. Nc3 {[%clk 0:02:53.2]}
8... Bg7 {[%clk 0:02:53.2]} 9. e4 {[%clk 0:02:48.9]} 9... Bxf1 {[%clk
0:02:47.6]} 10. Kxf1 {[%clk 0:02:49.8]} 10... d6 {[%clk 0:02:39.5]} 11. Kg2
{[%clk 0:02:50]} 11... O-O {[%clk 0:02:39.4]} 12. h3 {[%clk 0:02:49.5]} 12...
Re8 {[%clk 0:02:39.4]} 13. Re1 {[%clk 0:02:45.2]} 13... Na6 {[%clk 0:02:26]} 14.
a3 {[%clk 0:02:42.1]} 14... Nc7 {[%clk 0:02:25.9]} 15. Bf4 {[%clk 0:02:41.4]}
15... b5 {[%clk 0:02:20.3]} 16. Rad1 {[%clk 0:02:40.3]} 16... Nh5 {[%clk
0:02:11.5]} 17. Bg5 {[%clk 0:02:39.4]} 17... Bf6 {[%clk 0:01:38.9]} 18. Bxf6
{[%clk 0:02:38.9]} 18... Qxf6 {[%clk 0:01:38.6]} 19. e5 {[%clk 0:02:39.2]} 19...
dxe5 {[%clk 0:01:34.8]} 20. d6 {[%clk 0:02:39.3]} 20... Ne6 {[%clk 0:01:31]} 21.
Nd5 {[%clk 0:02:39.3]} 21... Qg7 {[%clk 0:01:24.1]} 22. Ne7+ {[%clk 0:02:34.5]}
22... Rxe7 {[%clk 0:00:51]} 23. dxe7 {[%clk 0:02:35.4]} 23... Re8 {[%clk
0:00:51.5]} 24. Rxe5 {[%clk 0:02:28.1]} 24... Rxe7 {[%clk 0:00:43.4]} 25. Rxe6
{[%clk 0:02:10.6]} 25... fxe6 {[%clk 0:00:43.3]} 26. Rd8+ {[%clk 0:02:10.5]}
26... Kf7 {[%clk 0:00:43.3]} 27. Ng5+ {[%clk 0:02:11]} 27... Kf6 {[%clk
0:00:43.3]} 28. Ne4+ {[%clk 0:02:11.5]} 28... Ke5 {[%clk 0:00:35.1]} 29. Qxc5+
{[%clk 0:01:58.8]} 29... Kxe4 {[%clk 0:00:34.7]} 30. f3# {[%clk 0:01:59.2]} 1-0

[Event "*** SCC Grand Prix: Titled Tuesday Blitz"]
[Site "Chess.com"]
[Date "2020.09.08"]
[Round "4"]
[White "picturesquecheck"]
[Black "ljuks68"]
[Result "0-1"]
[WhiteElo "2145"]
[BlackElo "2415"]
[TimeControl "180+1"]
[EndTime "10:37:29 PDT"]
[Termination "ljuks68 won by resignation"]

1. e4 {[%clk 0:03:00.9]} 1... e6 {[%clk 0:02:59.3]} 2. d4 {[%clk 0:02:56.5]}
2... d5 {[%clk 0:02:59.8]} 3. Nd2 {[%clk 0:02:57]} 3... Nf6 {[%clk 0:02:59.3]}
4. e5 {[%clk 0:02:46.5]} 4... Nfd7 {[%clk 0:02:59.1]} 5. Bd3 {[%clk 0:02:47.3]}
5... c5 {[%clk 0:02:59.4]} 6. c3 {[%clk 0:02:44.8]} 6... Nc6 {[%clk 0:02:59.8]}
7. Ne2 {[%clk 0:02:41.8]} 7... cxd4 {[%clk 0:02:59.1]} 8. cxd4 {[%clk
0:02:41.4]} 8... f6 {[%clk 0:02:59.3]} 9. exf6 {[%clk 0:02:41.1]} 9... Qxf6
{[%clk 0:02:58.5]} 10. Nf3 {[%clk 0:02:40.4]} 10... h6 {[%clk 0:02:58.9]} 11.
O-O {[%clk 0:02:39.6]} 11... Bd6 {[%clk 0:02:58.7]} 12. Be3 {[%clk 0:02:39.7]}
12... O-O {[%clk 0:02:58.3]} 13. Rc1 {[%clk 0:02:40.1]} 13... Rd8 {[%clk
0:02:58.3]} 14. Bb1 {[%clk 0:02:40.2]} 14... Nf8 {[%clk 0:02:57.4]} 15. a3
{[%clk 0:02:38.3]} 15... Bd7 {[%clk 0:02:56.6]} 16. b4 {[%clk 0:02:38.3]} 16...
a6 {[%clk 0:02:56.3]} 17. Qd3 {[%clk 0:02:38.1]} 17... Be8 {[%clk 0:02:55.9]}
18. Ng3 {[%clk 0:02:38.1]} 18... Rac8 {[%clk 0:02:52.4]} 19. Rfe1 {[%clk
0:02:26.5]} 19... g5 {[%clk 0:02:49.5]} 20. h3 {[%clk 0:02:23.1]} 20... Rc7
{[%clk 0:02:41.4]} 21. Nh2 {[%clk 0:02:22.7]} 21... h5 {[%clk 0:02:35.6]} 22.
Qd2 {[%clk 0:02:11.2]} 22... Rg7 {[%clk 0:02:32.8]} 23. Rf1 {[%clk 0:01:59]}
23... g4 {[%clk 0:02:27.4]} 24. hxg4 {[%clk 0:01:55]} 24... hxg4 {[%clk
0:02:27.1]} 25. Bd3 {[%clk 0:01:45.3]} 25... Qh4 {[%clk 0:02:24.2]} 26. Bf4
{[%clk 0:01:35.5]} 26... Bg6 {[%clk 0:02:18.1]} 27. Bxd6 {[%clk 0:01:35]} 27...
Rxd6 {[%clk 0:02:17.4]} 28. Qf4 {[%clk 0:01:14.6]} 28... Bxd3 {[%clk 0:02:02.6]}
29. Qxd6 {[%clk 0:01:07.6]} 29... Rh7 {[%clk 0:01:58.3]} 30. Ne2 {[%clk
0:01:06.6]} 30... Bxe2 {[%clk 0:01:55.1]} 31. Rfe1 {[%clk 0:01:04.7]} 31... e5
{[%clk 0:01:45.9]} 32. Qxd5+ {[%clk 0:01:04.3]} 32... Kh8 {[%clk 0:01:44.8]} 0-1

[Event "*** SCC Grand Prix: Titled Tuesday Blitz"]
[Site "Chess.com"]
[Date "2020.09.08"]
[Round "4"]
[White "Msb2"]
[Black "Thee-Chessboy"]
[Result "1-0"]
[WhiteElo "2882"]
[BlackElo "2474"]
[TimeControl "180+1"]
[EndTime "10:37:32 PDT"]
[Termination "Msb2 won by resignation"]

1. d4 {[%clk 0:03:00.9]} 1... Nf6 {[%clk 0:02:59.4]} 2. Nc3 {[%clk 0:03:01.3]}
2... d5 {[%clk 0:02:58.8]} 3. Bf4 {[%clk 0:03:02]} 3... c6 {[%clk 0:02:55.7]} 4.
e3 {[%clk 0:03:02.2]} 4... Bf5 {[%clk 0:02:52.4]} 5. Bd3 {[%clk 0:03:02.7]} 5...
e6 {[%clk 0:02:47.8]} 6. Nf3 {[%clk 0:03:01.8]} 6... Bb4 {[%clk 0:02:41.8]} 7.
O-O {[%clk 0:03:01.6]} 7... O-O {[%clk 0:02:39.7]} 8. Ne2 {[%clk 0:03:01.7]}
8... Ne4 {[%clk 0:02:34]} 9. c4 {[%clk 0:03:00]} 9... Bd6 {[%clk 0:00:19.9]} 10.
Bxd6 {[%clk 0:02:57.7]} 10... Nxd6 {[%clk 0:00:19.4]} 11. Bxf5 {[%clk
0:02:55.9]} 11... Nxf5 {[%clk 0:00:20.3]} 12. Qb3 {[%clk 0:02:56.2]} 12... Qb6
{[%clk 0:00:19.4]} 13. c5 {[%clk 0:02:56.8]} 13... Qxb3 {[%clk 0:00:19.5]} 14.
axb3 {[%clk 0:02:57.7]} 14... Nd7 {[%clk 0:00:19.4]} 15. b4 {[%clk 0:02:58.3]}
15... a6 {[%clk 0:00:19.2]} 16. Nd2 {[%clk 0:02:57.9]} 16... e5 {[%clk
0:00:18.6]} 17. Nb3 {[%clk 0:02:58.8]} 17... exd4 {[%clk 0:00:18.4]} 18. Nexd4
{[%clk 0:02:59.7]} 18... Nxd4 {[%clk 0:00:18.8]} 19. exd4 {[%clk 0:03:00.6]}
19... Nf6 {[%clk 0:00:15.4]} 20. f3 {[%clk 0:03:00]} 20... Rfe8 {[%clk 0:00:15]}
21. Na5 {[%clk 0:03:00.6]} 21... Rab8 {[%clk 0:00:14.4]} 22. Rfe1 {[%clk
0:03:00.6]} 22... Kf8 {[%clk 0:00:14.7]} 23. Kf2 {[%clk 0:03:00.7]} 23... g5
{[%clk 0:00:14.2]} 24. Rxe8+ {[%clk 0:03:00]} 24... Kxe8 {[%clk 0:00:14]} 25.
Ke3 {[%clk 0:02:59.7]} 25... Kd7 {[%clk 0:00:14.5]} 26. Kd3 {[%clk 0:03:00.6]}
26... Rd8 {[%clk 0:00:14.6]} 27. Nb3 {[%clk 0:03:01.5]} 27... Rb8 {[%clk
0:00:15.5]} 28. Re1 {[%clk 0:03:00.6]} 28... Re8 {[%clk 0:00:14.7]} 29. Re5
{[%clk 0:02:59.9]} 29... Rxe5 {[%clk 0:00:14.1]} 30. dxe5 {[%clk 0:03:00.8]}
30... Ne8 {[%clk 0:00:14.7]} 31. Nd4 {[%clk 0:02:56.5]} 31... Nc7 {[%clk
0:00:14.2]} 32. Nf5 {[%clk 0:02:56.4]} 32... Nb5 {[%clk 0:00:13.3]} 33. g3
{[%clk 0:02:38.5]} 33... Ke6 {[%clk 0:00:13]} 34. Nh6 {[%clk 0:02:39.4]} 34...
Kxe5 {[%clk 0:00:13.1]} 35. Nxf7+ {[%clk 0:02:39.9]} 35... Kf6 {[%clk
0:00:13.5]} 36. Nd8 {[%clk 0:02:40.5]} 36... h5 {[%clk 0:00:10.5]} 37. Nxb7
{[%clk 0:02:40.9]} 37... Nc7 {[%clk 0:00:08.3]} 38. Na5 {[%clk 0:02:41]} 1-0

[Event "*** SCC Grand Prix: Titled Tuesday Blitz"]
[Site "Chess.com"]
[Date "2020.09.08"]
[Round "4"]
[White "PlotnikovPavel"]
[Black "Jungle_Jaguar"]
[Result "0-1"]
[WhiteElo "2481"]
[BlackElo "2683"]
[TimeControl "180+1"]
[EndTime "10:37:38 PDT"]
[Termination "Jungle_Jaguar won by resignation"]

1. e4 {[%clk 0:03:00.9]} 1... e5 {[%clk 0:02:59.7]} 2. Nf3 {[%clk 0:03:00.5]}
2... Nc6 {[%clk 0:02:59.5]} 3. Nc3 {[%clk 0:03:00.7]} 3... Nf6 {[%clk
0:02:59.2]} 4. Be2 {[%clk 0:03:00.9]} 4... d5 {[%clk 0:02:57.2]} 5. exd5 {[%clk
0:03:00.7]} 5... Nxd5 {[%clk 0:02:57.3]} 6. O-O {[%clk 0:03:01.2]} 6... Nxc3
{[%clk 0:02:52.3]} 7. bxc3 {[%clk 0:03:02.1]} 7... e4 {[%clk 0:02:51.8]} 8. Ne1
{[%clk 0:03:02.3]} 8... f5 {[%clk 0:02:38.7]} 9. f3 {[%clk 0:03:02]} 9... exf3
{[%clk 0:02:26]} 10. Bxf3 {[%clk 0:03:01.3]} 10... Be6 {[%clk 0:02:26.6]} 11. d4
{[%clk 0:03:00.8]} 11... Bd5 {[%clk 0:02:06.7]} 12. Nd3 {[%clk 0:02:57.3]} 12...
Be7 {[%clk 0:02:04.3]} 13. Nf4 {[%clk 0:02:54.8]} 13... Bxf3 {[%clk 0:01:58.7]}
14. Qxf3 {[%clk 0:02:55.7]} 14... Qd7 {[%clk 0:01:53.1]} 15. d5 {[%clk
0:02:42.7]} 15... Ne5 {[%clk 0:01:42.4]} 16. Qe2 {[%clk 0:02:38.2]} 16... Bf6
{[%clk 0:01:01.9]} 17. Ne6 {[%clk 0:02:37.3]} 17... Kf7 {[%clk 0:00:54.4]} 18.
Rxf5 {[%clk 0:02:15.6]} 18... Qxd5 {[%clk 0:00:53.7]} 19. Ng5+ {[%clk
0:02:09.6]} 19... Kg6 {[%clk 0:00:53.5]} 20. g4 {[%clk 0:01:38.9]} 20... Qc4
{[%clk 0:00:40.4]} 21. Ne4 {[%clk 0:01:29]} 21... Qxe2 {[%clk 0:00:39.1]} 0-1

[Event "*** SCC Grand Prix: Titled Tuesday Blitz"]
[Site "Chess.com"]
[Date "2020.09.08"]
[Round "4"]
[White "Emp3rador"]
[Black "Bulldog167"]
[Result "0-1"]
[WhiteElo "2467"]
[BlackElo "2840"]
[TimeControl "180+1"]
[EndTime "10:37:43 PDT"]
[Termination "Bulldog167 won by resignation"]

1. e4 {[%clk 0:03:00.9]} 1... e6 {[%clk 0:02:59.5]} 2. d4 {[%clk 0:03:00.8]}
2... d5 {[%clk 0:03:00.1]} 3. Nc3 {[%clk 0:02:59.3]} 3... Bb4 {[%clk 0:02:59.5]}
4. exd5 {[%clk 0:02:59.1]} 4... exd5 {[%clk 0:02:59.6]} 5. Bd3 {[%clk
0:02:59.5]} 5... Nc6 {[%clk 0:02:58.9]} 6. Ne2 {[%clk 0:02:56.8]} 6... Nge7
{[%clk 0:02:55.9]} 7. Bf4 {[%clk 0:02:55.5]} 7... O-O {[%clk 0:02:55.9]} 8. Qd2
{[%clk 0:02:54.5]} 8... Bf5 {[%clk 0:02:56]} 9. O-O-O {[%clk 0:02:54.2]} 9...
Bxd3 {[%clk 0:02:53]} 10. Qxd3 {[%clk 0:02:54.2]} 10... Ng6 {[%clk 0:02:53.5]}
11. Bg3 {[%clk 0:02:54]} 11... Na5 {[%clk 0:02:52.3]} 12. h4 {[%clk 0:02:50.3]}
12... Nc4 {[%clk 0:02:48.7]} 13. h5 {[%clk 0:02:49.1]} 13... Ne7 {[%clk
0:02:49.1]} 14. h6 {[%clk 0:02:46.1]} 14... g6 {[%clk 0:02:49.3]} 15. Bh4 {[%clk
0:02:41.7]} 15... c6 {[%clk 0:02:46.4]} 16. Bf6 {[%clk 0:02:08.1]} 16... Re8
{[%clk 0:02:38.7]} 17. g4 {[%clk 0:02:00.9]} 17... Qb6 {[%clk 0:02:35.9]} 18. b3
{[%clk 0:01:49.7]} 18... Ba3+ {[%clk 0:02:32.5]} 19. Kb1 {[%clk 0:01:48.5]}
19... Nb2 {[%clk 0:02:33]} 20. Qf3 {[%clk 0:01:47]} 20... Nxd1 {[%clk
0:02:33.2]} 21. Rxd1 {[%clk 0:01:47]} 21... Nc8 {[%clk 0:02:28.1]} 22. Nf4
{[%clk 0:01:42]} 22... Bf8 {[%clk 0:02:25.7]} 23. Be5 {[%clk 0:01:35.9]} 23...
Qd8 {[%clk 0:01:51.8]} 24. Ncxd5 {[%clk 0:01:09.9]} 24... cxd5 {[%clk 0:01:52]}
25. Nxd5 {[%clk 0:01:10.8]} 25... Re6 {[%clk 0:01:47.3]} 26. Nc7 {[%clk
0:01:05.4]} 26... Rxe5 {[%clk 0:01:44.3]} 27. Nxa8 {[%clk 0:00:54.5]} 27... Re7
{[%clk 0:01:41.5]} 28. g5 {[%clk 0:00:39.2]} 28... Nd6 {[%clk 0:01:41.1]} 29.
Qf6 {[%clk 0:00:38.9]} 29... Ne4 {[%clk 0:01:40.2]} 30. Qf4 {[%clk 0:00:35.1]}
30... Nc3+ {[%clk 0:01:39.9]} 31. Kb2 {[%clk 0:00:34.9]} 31... Nxd1+ {[%clk
0:01:40.2]} 0-1

[Event "*** SCC Grand Prix: Titled Tuesday Blitz"]
[Site "Chess.com"]
[Date "2020.09.08"]
[Round "4"]
[White "queen_iryna"]
[Black "enriquebutti"]
[Result "1-0"]
[WhiteElo "2291"]
[BlackElo "1812"]
[TimeControl "180+1"]
[EndTime "10:37:43 PDT"]
[Termination "queen_iryna won by checkmate"]

1. d4 {[%clk 0:03:00.9]} 1... Nf6 {[%clk 0:02:54.6]} 2. Nc3 {[%clk 0:03:00.2]}
2... g6 {[%clk 0:02:52.6]} 3. e4 {[%clk 0:02:58.3]} 3... d6 {[%clk 0:02:52]} 4.
h3 {[%clk 0:02:58.2]} 4... a6 {[%clk 0:02:47.8]} 5. Be3 {[%clk 0:02:58.1]} 5...
b5 {[%clk 0:02:47.4]} 6. e5 {[%clk 0:02:53]} 6... Nfd7 {[%clk 0:02:46.8]} 7. Qf3
{[%clk 0:02:51.7]} 7... Ra7 {[%clk 0:02:44.7]} 8. a4 {[%clk 0:02:22.7]} 8... b4
{[%clk 0:02:36.8]} 9. Ne4 {[%clk 0:02:19.5]} 9... dxe5 {[%clk 0:02:28.2]} 10.
Ng5 {[%clk 0:02:11.5]} 10... Nf6 {[%clk 0:02:06.6]} 11. dxe5 {[%clk 0:02:09.8]}
11... Bb7 {[%clk 0:02:04.9]} 12. Qf4 {[%clk 0:02:03.8]} 12... h6 {[%clk
0:01:53.4]} 13. Nxf7 {[%clk 0:01:54.7]} 13... Kxf7 {[%clk 0:01:51.2]} 14. Bxa7
{[%clk 0:01:51.5]} 14... g5 {[%clk 0:01:45.8]} 15. Bc4+ {[%clk 0:01:46.7]} 15...
Ke8 {[%clk 0:01:27.9]} 16. Qf5 {[%clk 0:01:43.8]} 16... Nc6 {[%clk 0:01:20.1]}
17. exf6 {[%clk 0:01:37.2]} 17... exf6 {[%clk 0:01:07.6]} 18. Qg6+ {[%clk
0:01:30.2]} 18... Kd7 {[%clk 0:01:04.8]} 19. O-O-O+ {[%clk 0:01:29]} 19... Bd6
{[%clk 0:01:04.4]} 20. Qf5+ {[%clk 0:01:22.7]} 20... Ke7 {[%clk 0:01:01.1]} 21.
Nf3 {[%clk 0:01:19.8]} 21... Nxa7 {[%clk 0:00:58.7]} 22. Rhe1+ {[%clk 0:01:19]}
22... Kf8 {[%clk 0:00:56.5]} 23. Qe6 {[%clk 0:01:10.1]} 23... Rh7 {[%clk
0:00:50.9]} 24. Qg8# {[%clk 0:01:08.8]} 1-0

[Event "*** SCC Grand Prix: Titled Tuesday Blitz"]
[Site "Chess.com"]
[Date "2020.09.08"]
[Round "4"]
[White "Slovak_fighter2000"]
[Black "Th3_Hound"]
[Result "0-1"]
[WhiteElo "2375"]
[BlackElo "2606"]
[TimeControl "180+1"]
[EndTime "10:37:45 PDT"]
[Termination "Th3_Hound won on time"]

1. d4 {[%clk 0:03:00.8]} 1... Nf6 {[%clk 0:02:59.6]} 2. c4 {[%clk 0:03:00.9]}
2... g6 {[%clk 0:02:59.9]} 3. Nc3 {[%clk 0:03:00.9]} 3... d5 {[%clk 0:03:00.1]}
4. Nf3 {[%clk 0:03:00.8]} 4... Bg7 {[%clk 0:02:59.8]} 5. Bg5 {[%clk 0:03:00.8]}
5... Ne4 {[%clk 0:02:59.7]} 6. cxd5 {[%clk 0:03:00.9]} 6... Nxg5 {[%clk
0:02:59.7]} 7. Nxg5 {[%clk 0:03:01.8]} 7... e6 {[%clk 0:03:00.1]} 8. Qd2 {[%clk
0:03:01.9]} 8... h6 {[%clk 0:02:56.6]} 9. Nh3 {[%clk 0:03:00.6]} 9... exd5
{[%clk 0:02:56.5]} 10. Nf4 {[%clk 0:03:01.2]} 10... O-O {[%clk 0:02:50.6]} 11.
e3 {[%clk 0:03:00]} 11... c5 {[%clk 0:02:47.6]} 12. Be2 {[%clk 0:02:50]} 12...
cxd4 {[%clk 0:02:44.4]} 13. exd4 {[%clk 0:02:50.9]} 13... Nc6 {[%clk 0:02:44.6]}
14. Nfxd5 {[%clk 0:02:47.3]} 14... Nxd4 {[%clk 0:02:42.1]} 15. O-O {[%clk
0:02:47.3]} 15... Be6 {[%clk 0:02:22]} 16. Bc4 {[%clk 0:02:36.3]} 16... b5
{[%clk 0:02:07.8]} 17. Bb3 {[%clk 0:02:26.4]} 17... Nxb3 {[%clk 0:01:45.2]} 18.
axb3 {[%clk 0:02:26.4]} 18... Bxc3 {[%clk 0:01:45.3]} 0-1

[Event "*** SCC Grand Prix: Titled Tuesday Blitz"]
[Site "Chess.com"]
[Date "2020.09.08"]
[Round "4"]
[White "chessplayer9919"]
[Black "tk22h"]
[Result "1-0"]
[WhiteElo "2601"]
[BlackElo "2370"]
[TimeControl "180+1"]
[EndTime "10:37:45 PDT"]
[Termination "chessplayer9919 won by resignation"]

1. e4 {[%clk 0:03:00.9]} 1... e5 {[%clk 0:02:58.9]} 2. Nf3 {[%clk 0:02:59.8]}
2... Nc6 {[%clk 0:02:56.8]} 3. d4 {[%clk 0:02:59.6]} 3... exd4 {[%clk
0:02:56.6]} 4. Nxd4 {[%clk 0:03:00.5]} 4... Bb4+ {[%clk 0:02:54.8]} 5. Nc3
{[%clk 0:02:53.5]} 5... Nge7 {[%clk 0:02:47.6]} 6. Nxc6 {[%clk 0:02:39.8]} 6...
Nxc6 {[%clk 0:02:47.1]} 7. Bd2 {[%clk 0:02:39.9]} 7... O-O {[%clk 0:02:46.2]} 8.
Bd3 {[%clk 0:02:39.4]} 8... d6 {[%clk 0:02:45]} 9. O-O {[%clk 0:02:29.5]} 9...
Ne5 {[%clk 0:02:45]} 10. Nd5 {[%clk 0:02:14.7]} 10... Bxd2 {[%clk 0:02:43.6]}
11. Qxd2 {[%clk 0:02:15.6]} 11... Be6 {[%clk 0:02:34.4]} 12. f4 {[%clk 0:02:00]}
12... Nxd3 {[%clk 0:02:33]} 13. Qxd3 {[%clk 0:01:57.8]} 13... Bxd5 {[%clk
0:02:17.8]} 14. Qxd5 {[%clk 0:01:56]} 14... c6 {[%clk 0:02:16.1]} 15. Qd4 {[%clk
0:01:42]} 15... f5 {[%clk 0:02:05.4]} 16. Rae1 {[%clk 0:01:09.4]} 16... fxe4
{[%clk 0:02:04]} 17. Rxe4 {[%clk 0:01:10.3]} 17... d5 {[%clk 0:02:04.1]} 18. Re6
{[%clk 0:01:00.1]} 18... Qd7 {[%clk 0:02:03.2]} 19. Rfe1 {[%clk 0:00:56.7]}
19... Rae8 {[%clk 0:02:02.7]} 20. f5 {[%clk 0:00:56.1]} 20... Qf7 {[%clk
0:01:55.1]} 21. Qxa7 {[%clk 0:00:42]} 21... Rxe6 {[%clk 0:01:51.9]} 22. fxe6
{[%clk 0:00:40.6]} 22... Qf5 {[%clk 0:01:45.9]} 23. e7 {[%clk 0:00:36.7]} 23...
Re8 {[%clk 0:01:45.1]} 24. Qxb7 {[%clk 0:00:34.4]} 24... Qxc2 {[%clk 0:01:42.6]}
25. Qd7 {[%clk 0:00:34]} 25... Qc5+ {[%clk 0:01:41.7]} 26. Kh1 {[%clk
0:00:33.6]} 1-0